Cogmind - Beta 16 @@@ ROGUE MODE // 2025.12.14 @ 22:27:21 Player: AngelSpirit Result: Destroyed by S-10 Pest with Light Assault Rifle Performance ------------- Evolutions (0) 0 Regions Visited (3) 600 Robots Destroyed (12) 60 Value Destroyed (436) 436 Prototype IDs (0) 0 Alien Tech Used (0) 0 Bonus (0) 0 TOTAL SCORE: 1096 Bonus ------- None Cogmind --------- Core Integrity 0/250 Matter 290/300 Energy 199/200 System Corruption 0% Temperature Cool (0) Movement Rolling (120) Ox1 Location -10/Subcaves Parts ------- > --- POWER (1) -------- Subdweller Power Source > --- PROPULSION (2) --- Subdweller Monowheel Subdweller Monowheel > --- UTILITY (2) ------ Large Storage Unit Sensor Array > --- WEAPON (2) ------- Subdweller Laser Subdweller Beam Cannon > --- INVENTORY (15) --- Subdweller Power Source Arachnoskeleton Disposable Heat Sink Large Storage Unit Medium Matter Pod (100) Bomb Drone Bay Subdweller Machine Gun Barrage Gun Battle Cannon Peak State ------------ > --- POWER ------------ Subdweller Power Source > --- PROPULSION ------- Wheel Subdweller Monowheel > --- UTILITY ---------- Disposable Heat Sink Large Storage Unit > --- WEAPON ----------- Subdweller Laser Subdweller Laser > --- INVENTORY -------- Subdweller Power Source Arachnoskeleton Subdweller Monowheel Large Storage Unit Medium Matter Pod Sensor Array Bomb Drone Bay Subdweller Laser Beam Cannon Barrage Gun Battle Cannon [Rating: 17] Favorites ----------- Power Subdweller Power Source Engine Subdweller Power Source Propulsion Subdweller Monowheel Wheel Subdweller Monowheel Utility Large Storage Unit Device Sensor Array Storage Large Storage Unit Weapon Subdweller Laser Energy Gun Subdweller Laser Energy Cannon Beam Cannon Ballistic Gun Subdweller Machine Gun Special Weapon Mining Laser Build | -11 -10 -10 -10 ------- Run | Yrd Mat Min Sub Slots Evolved . | . . . . Power . | . . . . Propulsion . | . . . . Utility . | . . . . Weapon . | . . . . Parts Attached 23 | 6 3 . 14 Power 3 | 1 . . 2 Engine 3 | 1 . . 2 Core . | . . . . Reactor . | . . . . Propulsion 5 | 2 . . 3 Treads . | . . . . Leg . | . . . . Wheel 5 | 2 . . 3 Hover . | . . . . Flight . | . . . . Utility 5 | 1 2 . 2 Device 3 | . 1 . 2 Storage 2 | 1 1 . . Processor . | . . . . Hackware . | . . . . Protection . | . . . . Artifact . | . . . . Weapon 10 | 2 1 . 7 Energy Gun 4 | 1 . . 3 Energy Cannon 3 | . 1 . 2 Ballistic Gun 2 | 1 . . 1 Ballistic Cannon . | . . . . Launcher . | . . . . Special Weapon 1 | . . . 1 Impact Weapon . | . . . . Slashing Weapon . | . . . . Piercing Weapon . | . . . . Special Melee Weapon . | . . . . Unidentified Prototypes . | . . . . Parts Lost 5 | . . . 5 Power 1 | . . . 1 Propulsion 2 | . . . 2 Utility . | . . . . Weapon 2 | . . . 2 Highest Loss Streak 2 | . . . 2 To Critical Strikes . | . . . . Average Backups 8 | . 2 6 10 Power . | . . . . Propulsion 1 | . . . 1 Utility 3 | . 1 3 4 Weapon 3 | . 1 3 3 Tool/Special . | . . . . Unused Backups 12 | . . . 12 Power 1 | . . . 1 Propulsion 2 | . . . 2 Utility 4 | . . . 4 Weapon 5 | . . . 5 Tool/Special . | . . . . Average Slot Usage (%) 99 | . 96 100 99 Engine 13 | . 14 14 13 Wheel 28 | . 28 28 28 Device 13 | . 10 14 14 Storage 14 | . 14 14 14 Energy Gun 11 | . 4 . 13 Energy Cannon 7 | . 9 14 7 Ballistic Gun 8 | . 14 14 6 Peak Build Rating 17 | 6 7 9 17 Average Rating 13 | 4 6 8 14 On Entrance 5 | . 6 7 9 Avg Prop Armor Cover (%) 6 | . . . 6 Naked Turns . | . . . . Heaviest Build 38 | 14 31 31 38 Greatest Support 40 | 26 26 26 40 Greatest Overweight (x) 1 | . 1 1 1 Average Overweight (x) . | . . 1 . Largest Inventory Capacity 15 | 8 15 15 15 Average Capacity 14 | 7 14 15 15 Most Carried 15 | . 6 8 15 Average Carried 11 | . 2 7 12 Final Capacity 15 | 8 15 15 15 Final Carried 12 | . 6 8 12 Class Distribution -------------------- 91% | Mutant 6% | Derelict-Mutant Dominant Class ---------------- Mutant | -10/Materials Mutant | -10/Mines Mutant | -10/Subcaves Resources | -11 -10 -10 -10 ----------- Run | Yrd Mat Min Sub Matter Collected 619 | 222 83 . 314 Remotely . | . . . . Salvage Created 445 | . 83 . 362 Parts 36 | . 4 . 32 Haulers Intercepted 1 | . 1 . . Recyclers Shooed . | . . . . Parts Field Recycled . | . . . . Retrieved Matter . | . . . . Parts Self-Destructed 10 | . . . 10 Prevented . | . . . . Parts Restored . | . . . . Kills | -11 -10 -10 -10 ------- Run | Yrd Mat Min Sub Combat Hostiles Destroyed 11 | . 1 . 10 Guns 6 | . 1 . 5 Cannons 5 | . . . 5 Classes Destroyed 3 | . 2 . 1 Hauler 1 | . 1 . . Grunt 1 | . 1 . . Subdweller 10 | . . . 10 Best Kill Streak 2 | . 1 . 2 Combat Bots Only 2 | . 1 . 2 Max Kills in Single Turn 2 | . 1 . 2 Gunslinging 1 | . . . 1 Exploded . | . . . . Melee . | . . . . Uniques/NPCs Destroyed . | . . . . Combat | -11 -10 -10 -10 -------- Run | Yrd Mat Min Sub Hostile Shots Fired 49 | . 5 . 44 Missed 17 | . 2 . 15 Hits 32 | . 3 . 29 Projectile 32 | . 3 . 29 AOE 1 | . . . 1 Critical Strikes 3 | . . . 3 Damage Taken 750 | . 40 . 710 Core 252 | . . . 252 Absorbed by Shields . | . . . . Core Remaining (%) 100 | 100 . . . Volleys Fired 56 | . 8 . 48 Largest 2 | . 2 . 2 Hottest 120 | . 80 . 120 Shots Fired 101 | . 15 . 86 Gun 59 | . 10 . 49 Cannon 41 | . 5 . 36 Launcher . | . . . . Special 1 | . . . 1 Kinetic 13 | . 8 . 5 Thermal 88 | . 7 . 81 Explosive . | . . . . Electromagnetic . | . . . . Robot Hit Streak 26 | . 3 . 26 Robot Miss Streak 2 | . 2 . 2 Penetration Max . | . . . . Secondary Targets 1 | . . . 1 Max Gunslinging Chain 1 | . . . 1 Shots Hit Robots 59 | . 8 . 51 Core Hits 19 | . 3 . 16 Critical Kills 1 | . . . 1 Critical Parts Destroyed . | . . . . Critical Strikes 4 | . . . 4 Destroy 4 | . . . 4 Melee Attacks . | . . . . Impact . | . . . . Slashing . | . . . . Piercing . | . . . . Sneak Attacks . | . . . . Combat Hostiles . | . . . . Follow-up Attacks . | . . . . Damage Inflicted 1041 | . 134 . 907 Guns 556 | . 81 . 475 Cannons 485 | . 53 . 432 Explosions . | . . . . Melee . | . . . . Ramming . | . . . . Kinetic 140 | . 81 . 59 Thermal 901 | . 53 . 848 Explosive . | . . . . Electromagnetic . | . . . . Impact . | . . . . Slashing . | . . . . Piercing . | . . . . Highest Corruption . | . . . . Average Corruption . | . . . . Corruption Purged . | . . . . Corruption Blocked . | . . . . Overload Shots . | . . . . Overflow Damage . | . . . . Projectiles . | . . . . Explosions . | . . . . Melee . | . . . . Knockbacks . | . . . . Impact . | . . . . Kinetic . | . . . . Secondary . | . . . . Self-Inflicted Damage . | . . . . Shots . | . . . . Rammed . | . . . . Targets Rammed . | . . . . Kicked . | . . . . Crushed . | . . . . Highest Temperature 210 | . 24 . 210 Average Temperature 72 | . 12 . 110 Received Heat Transfer 350 | . 21 . 329 Siege Activations . | . . . . Martial Activations . | . . . . Shielding Activations . | . . . . Robots Disrupted . | . . . . Combat Hostiles . | . . . . Robots Corrupted . | . . . . Combat Hostiles . | . . . . Parts Fried . | . . . . Impact Corruptions . | . . . . Robots Melted . | . . . . Combat Hostiles . | . . . . Parts Melted 1 | . . . 1 Heat Transferred 1536 | . 111 . 1425 Parts Sabotaged . | . . . . Parts Stolen . | . . . . Parts Stripped . | . . . . Power Chain Reactions . | . . . . Alert | -11 -10 -10 -10 ------- Run | Yrd Mat Min Sub Maximum Alert Level . | . . . . Low Security (%) 100 | 100 100 100 . Level 1 . | . . . . Level 2 . | . . . . Level 3 . | . . . . Level 4 . | . . . . Level 5 . | . . . . High Security . | . . . . Max Security . | . . . . Peak Influence 40 | . 40 15 . Initial 15 | . . 15 . Average 5 | . 8 3 . Influence Increases 92 | . 92 . . Destroy 0b10 Robot/C 20 | . 20 . . Destroy 0b10 Robot/NC 5 | . 5 . . Destroy Leader 2 | . 2 . . Successful Hack 5 | . 5 . . Select Force Hacks 30 | . 30 . . Lose Combat Pursuer 30 | . 30 . . Influence Decreases 92 | . 52 40 . Entered New Map 25 | . . 25 . Time Decay 67 | . 52 15 . Squads Dispatched 2 | . 2 . . Investigation 1 | . 1 . . Extermination . | . . . . Reinforcement 1 | . 1 . . Assault . | . . . . Garrison . | . . . . Intercept . | . . . . Searches Triggered . | . . . . Construction Impeded . | . . . . Haulers Reinforced . | . . . . Active Scanning Responses . | . . . . Cargo Convoy Interrupts . | . . . . Stealth | -11 -10 -10 -10 --------- Run | Yrd Mat Min Sub Distress Signals . | . . . . Communications Jammed . | . . . . Distress Signals . | . . . . Times Spotted 23 | . 10 . 13 Peak Tracking Total 7 | . 7 . 3 Tactical Retreats 1 | . 1 . . Traps | -11 -10 -10 -10 ------- Run | Yrd Mat Min Sub Traps Triggered 1 | . . . 1 Indirectly . | . . . . Trap Hack Attempts . | . . . . Triggered . | . . . . Disarmed . | . . . . Reprogrammed . | . . . . Reused 1 | . . . 1 Traps Extracted . | . . . . Installed 1 | . . . 1 Triggered . | . . . . Most Traps Carried 1 | . . . 1 Machines | -11 -10 -10 -10 ---------- Run | Yrd Mat Min Sub Machines Disabled . | . . . . Max in Single Turn . | . . . . Machines Repaired . | . . . . Machines Dismantled . | . . . . Machines Sabotaged . | . . . . Overloaded Fab Kills . | . . . . Hacking | -11 -10 -10 -10 --------- Run | Yrd Mat Min Sub Machines Accessed 4 | . 3 1 . Terminals 2 | . 2 . . Fabricators . | . . . . Repair Stations . | . . . . Recycling Units 1 | . 1 . . Scanalyzers . | . . . . Garrison Access . | . . . . Total Hacks 7 | . 6 1 . Successful 4 | . 3 1 . Failed 3 | . 3 . . Catastrophic . | . . . . Database Lockouts . | . . . . Manual 3 | . 3 . . Terminals 4 | . 4 . . Fabricators . | . . . . Repair Stations . | . . . . Recycling Units 2 | . 2 . . Scanalyzers . | . . . . Garrison Access . | . . . . Terminal Hacks 2 | . 1 1 . Robot Analysis 1 | . 1 . . Open Door 1 | . . 1 . Fabricator Hacks . | . . . . Repair Station Hacks . | . . . . Recycling Unit Hacks . | . . . . Scanalyzer . | . . . . Garrison Access Hacks . | . . . . Unauthorized Hacks 2 | . 2 . . Terminals 1 | . 1 . . Botnet 1 | . 1 . . Fabricators . | . . . . Repair Stations . | . . . . Recycling Units 1 | . 1 . . Tunnel 1 | . 1 . . Scanalyzers . | . . . . Garrison Access . | . . . . Data Cores Recovered . | . . . . Used . | . . . . Hacking Detections 3 | . 3 . . Full Trace Events . | . . . . Feedback Events . | . . . . Feedback Blocked . | . . . . Robot Schematics Acquired . | . . . . Robots Built . | . . . . Authchips . | . . . . Time . | . . . . Total Robot Build Rating . | . . . . Part Schematics Acquired . | . . . . Parts Built . | . . . . Authchips . | . . . . Time . | . . . . Total Part Build Rating . | . . . . Part Studies Acquired . | . . . . Parts Repaired . | . . . . Time . | . . . . Parts Recycled . | . . . . Recycled Matter . | . . . . Retrieved Matter . | . . . . Retrieved Components . | . . . . Parts Scanalyzed . | . . . . Part Schematics Acquired . | . . . . Parts Damaged . | . . . . Bothacking | -11 -10 -10 -10 ------------ Run | Yrd Mat Min Sub Used RIF Installer . | . . . . Robots Hacked . | . . . . Non-combat . | . . . . Combat . | . . . . Robot Hacks Applied . | . . . . Relay Couplers Released . | . . . . Fabnet Peak Effective % . | . . . . Robots Rewired . | . . . . Allies Hacked . | . . . . Hacks Repelled . | . . . . Allies | -11 -10 -10 -10 -------- Run | Yrd Mat Min Sub Total Allies . | . . . . Largest Group . | . . . . Highest-Rated Group . | . . . . Highest-Rated Ally . | . . . . Total Orders . | . . . . Ally Attacks . | . . . . Total Damage . | . . . . Kills . | . . . . Allies Corrupted . | . . . . Allies Melted . | . . . . Intel | -11 -10 -10 -10 ------- Run | Yrd Mat Min Sub Active Infowar (turns) 870 | . . . 870 Sensors 870 | . . . 870 Robot Analysis Total 1 | . 1 . . Derelict Logs Recovered 2 | . . 1 1 Drone Launches . | . . . . Drone Recoveries . | . . . . Exploration | -11 -10 -10 -10 ------------- Run | Yrd Mat Min Sub Turns Passed 1876 | 38 197 123 1518 Spaces Moved 1382 | 34 154 115 1079 Core 4 | 4 . . . Treads . | . . . . Legs . | . . . . Wheels 1378 | 30 154 115 1079 Hover . | . . . . Flight . | . . . . Fastest Speed 50 | 50 90 105 105 Average Speed 107 | 85 103 105 108 Slowest Speed 120 | 90 105 105 120 Overloaded Moves . | . . . . Propulsion Burnouts . | . . . . Robots Hopped . | . . . . Potential Cave-ins . | . . . . Cave-ins Triggered . | . . . . Exploration Rate (%) 29 | 4 29 31 52 Regions Visited 3 Branch Regions 2 Pre-discovered Areas 1 | . 1 . . Known Exits Taken . | . . . . Unknown Exits Taken 3 | 1 1 1 . Scrap Searched 6 | . . . 6 Spaces Dug . | . . . . Terrain Destroyed . | . . . . Melee . | . . . . Projectile . | . . . . AOE . | . . . . Terrain Rammed . | . . . . Walls Destroyed . | . . . . Machines Disabled . | . . . . Actions | -11 -10 -10 -10 --------- Run | Yrd Mat Min Sub Total 1670 | 39 176 117 1338 Wait 164 | . 4 2 158 Move 1379 | 33 153 114 1079 Hop . | . . . . Pick Up 23 | . 6 1 16 Fast Attach 14 | 6 3 . 5 Attach 7 | . . . 7 Detach . | . . . . Swap 9 | . . . 9 Drop 17 | . 2 . 15 Fire 56 | . 8 . 48 Melee . | . . . . Ram . | . . . . Kick . | . . . . Crush . | . . . . Escape Stasis . | . . . . Rewire . | . . . . Trap 1 | . . . 1 Miscellaneous . | . . . . Route ------- -11/Scrapyard -10/Materials -10/Mines (discovered 2 exits: [*Mat] / [*Sub]) -10/Subcaves (discovered 1 exit: [*Mat]) History --------- Turn | Location | Event 16 | -11/Scrapyard | Discovered new exit (range 16) 39 | -11/Scrapyard | Entered Materials 169 | -10/Materials | Discovered new exit (range 11) 236 | -10/Materials | Entered Mines 256 | -10/Mines | Discovered new exit (range 8) 269 | -10/Mines | Found the Drone Emporium 275 | -10/Mines | Found Prototype Device 307 | -10/Mines | Build established: Mutant 314 | -10/Mines | Learned Materials stockpile data 335 | -10/Mines | Discovered new exit (range 4) 359 | -10/Mines | Entered Subcaves 535 | -10/Subcaves | Learned Materials stockpile data 588 | -10/Subcaves | Disturbed a concealed Subdweller 589 | -10/Subcaves | Disturbed a concealed Subdweller 720 | -10/Subcaves | Shifting Twisted Machinery released Spk. Treads 734 | -10/Subcaves | Shifting Twisted Machinery released Lgt. Humpback 884 | -10/Subcaves | A Subdweller sparked back to life 884 | -10/Subcaves | A Subdweller sparked back to life 895 | -10/Subcaves | Core integrity fell below 50% 903 | -10/Subcaves | Found Prototype Leg 960 | -10/Subcaves | Shifting Twisted Machinery released Battle Cannon 999 | -10/Subcaves | Core integrity fell below 20% 1027 | -10/Subcaves | A swath of the cavern ceiling suddenly collapsed 1053 | -10/Subcaves | Shifting Twisted Machinery released Sub. Machine Gun 1752 | -10/Subcaves | Discovered new exit (range 11) 1877 | -10/Subcaves | Destroyed by S-10 Pest with Light Assault Rifle Last Messages --------------- 01486_ C1-XQ7(u) builds Twisted Machinery. 01487_ Acquired 2 matter. 01561_ OX-ZM7(u) builds Twisted Machinery. 01689_ Sub. Monowheel shoots sparks and powers down. 01690_ Dropped Broken Sub. Monowheel. 01690_ Acquired Broken Sub. Monowheel. 01725_ Sub. Monowheel shoots sparks and powers down. 01727_ Dropped Broken Sub. Monowheel. 01752_ EXIT=FOUND 01813_ Critical hit (Meltdown: +260). 01816_ A0-AHC(R) suffers critical hit (Destroy). 01816_ A0-AHC(R) destroyed. 01816_ Switching to secondary target: 4T-2LD(R). 01816_ 4T-2LD(R) destroyed. 01819_ Dropped Sub. Machine Gun. 01821_ Acquired Sub. Beam Cannon. 01822_ Acquired 30 matter. 01824_ Acquired 18 matter. Map ----- +----------------------------------------------------+ | ???????????????????????????????????????????? | | ???????????????????????????????????????????? | | ???????????????????????????????????????????? | | ???????????????????????????????????????????? | | ???????????????????????????????????????????? | | ???????????????????????????????????????????? | | ???????????????????????????????????????????? | | ???????????????????????????????????????????? | | ????????????????????? ?????????????????????? | | ????????????????????? ????????????????????? | | ???????????????????? ????????????????????? | | ???????????????????? ???????????????????? | | ???????????????????? ???????????????????? | | ???????????????????? ???????????????????? | | ???????????????????? ???????????????????? | | ???????????????????#!=%????????????????????? | | ???????????????????#&&&????????????????????? | | ???????????????????#*%#????????????????????? | | ??????????????????##&&#????????????????????? | | ??????????????????# [#?????##?????????????? | | ??????????????????# #???? ??????????????? | | ??????????????##### ""#??? #??????????????? | | ??????????????# "#??? "#??????????????? | | ?????????????#??# " "#??? "##?????????????? | | ?????????????# ?# " "s#### ""#?????????????? | | ?????????????# "# s @ ""#?????????????? | | ?????????????#"" ##" "<"##?????????????? | | ?????????????###"" "#"" #??????????????? | | ???????????????## # """" #??????????????? | | ????????????????### "## ##??????????????? | | #????????????????### "## #???????????????? | | #??????????????#""##" " #???????????????? | | #??????????????#"""## "" #???????????????? | | ##?????????????#"""### " #???????????????? | | #?????????????# ""#?## ##??????????????? | | ##????????????#"""#??### "#??????????????? | | ##???????????#" ###### ##??????????????? | | # ##??????????#" ## " #???????????????? | | # ##?????????## "" ## "#???????????????? | | #??????????# "" " ##??????????????? | | %#??????????# " #??????????????? | | #?????????# % ##??????????????? | | #????????# ### #??????????????? | | ##??????# ##?# ##?????????????? | | ###????? ####?##! #?????????????? | | ##?????? #??###&%* ##?????????????? | | ###???#### #### & & #??????????????? | | % #??????# #?# ##??????????????? | | ####### #?## [ "##???????????????? | | ### #??# ####??????????????? | +----------------------------------------------------+ Best States ------------- Heat Dissipation 35 Coolant Potential 50 Energy Generation 15 Energy Capacity 250 Matter Stores 300 Matter Capacity 300 Sight Range 16 Robot Scan Range 14 Terrain Scan Density 10 Evasion (%) 42 Item Schematics ----------------- None Robot Schematics ------------------ None Fabricated ------------ Nothing Repaired ---------- Nothing Studied --------- None Alien Tech Used ----------------- None Achievements -------------- None Challenges ------------ None Game ------ Seed AnalysisAntigravRay Manual? 0 Play Time 00:17:18 Cumulative 292.6 hours Start 2025.12.14 @ 20:57:20 End 2025.12.14 @ 22:27:21 Sessions 3 Manual Loads 0 Difficulty Rogue Special Mode None Game No. 101 Rogue 101 Adventurer 0 Explorer 0 Win Type - Total 2 Types 1/0/0/0/0/0/0/0/0/1 Lore% 73 Gallery% 68 Achievement% 57 Wizard Run 0 Options --------- Layout 1 ASCII 0 Keyboard 0 Movement Mouse Keybinds 0 Fullscreen 2 Font 32/SmallcapsGlow Map View 50x35 Zoom Use 0% Tactical HUD 1 Map Filters NONE Filters NONE Steam 1 RUN: 67e09629-dcf8-484d-82df-cf4fc07c7f0e